fUST/lending_fUST_20250213
["ID","MTS","AMOUNT","RATE_DAILY","PERIOD"]
[352941529,1739449839620,-196.0,0.000145,4]
[352941530,1739449839630,-176.0,0.000145,7]
[352941531,1739449839640,-176.0,0.000145,7]
[352941532,1739449839650,-176.0,0.000145,6]
[352941533,1739449839661,-502.0,0.000145,5]
[352941534,1739449839670,-6309.87960979,0.000145,2]
[352941535,1739449839685,-20635.12039021,0.000145,2]
[352941536,1739449839695,-673.73392431,0.000145,2]
[352941537,1739449839705,-3000.0,0.000145,30]
[352941538,1739449839715,-151.0,0.000145,2]
[352941539,1739449839725,-151.0,0.000145,2]
[352941540,1739449839734,-314.0,0.000145,2]
[352941541,1739449839744,-314.0,0.000145,2]
[352941542,1739449839754,-314.0,0.000145,2]
[352941543,1739449839764,-157.0,0.000145,2]
[352941544,1739449839774,-151.0,0.000145,2]
[352941545,1739449839784,-151.0,0.000145,2]
[352941546,1739449839795,-156.29294283,0.000145,2]
[352941547,1739449839804,-314.0,0.000145,2]
[352941548,1739449839814,-314.0,0.000145,2]
[352941549,1739449839824,-325.17185749,0.000145,2]
[352941550,1739449839833,-314.0,0.000145,2]
[352941551,1739449839844,-314.0,0.000145,2]
[352941552,1739449839853,-314.0,0.000145,2]
[352941553,1739449839863,-322.0,0.000145,2]
[352941554,1739449839873,-1000.0,0.000145,2]
[352941555,1739449839883,-314.0,0.000145,2]
[352941556,1739449839894,-314.0,0.000145,2]
[352941557,1739449839903,-274.0,0.0001451,2]
[352941558,1739449839914,-3000.0,0.0001451,30]
[352941559,1739449839924,-3000.0,0.0001452,30]
[352941560,1739449839934,-3000.0,0.0001453,30]
[352941561,1739449839944,-3000.0,0.0001454,30]
[352941562,1739449839954,-3000.0,0.0001455,30]
[352941563,1739449839964,-3000.0,0.0001456,30]
[352941564,1739449839974,-14846.95793023,0.00014564,2]
[352941565,1739449839984,-3000.0,0.0001457,30]
[352941566,1739449839994,-3000.0,0.0001458,30]
[352941567,1739449840010,-3000.0,0.0001459,30]
[352941568,1739449840020,-3000.0,0.000146,30]
[352941569,1739449840030,-151.0,0.000146,2]
[352941570,1739449840040,-151.0,0.000146,2]
[352941571,1739449840052,-151.0,0.000146,2]
[352941572,1739449840062,-151.0,0.000146,2]
[352941573,1739449840072,-151.0,0.000146,2]
[352941574,1739449840083,-151.0,0.000146,2]
[352941575,1739449840093,-5031.056272,0.0001461,30]
[352941576,1739449840103,-168.2952355,0.0001463,2]
[352941577,1739449840113,-999.99999901,0.00014678,2]
[352941578,1739449840122,-15917.05675879,0.000147,2]
[352941579,1739449840135,-18640.16224952,0.000147,2]
[352941580,1739449840144,-327.0,0.000147,5]
[352941581,1739449840154,-151.0,0.000147,2]
[352941582,1739449840165,-151.0,0.000147,2]
[352941583,1739449840175,-151.0,0.000147,2]
[352941584,1739449840185,-151.0,0.000147,2]
[352941585,1739449840195,-151.0,0.000147,2]
[352941586,1739449840205,-151.0,0.000147,2]
[352941587,1739449840214,-151.0,0.000147,2]
[352941588,1739449840224,-151.0,0.000147,2]
[352941589,1739449840233,-151.0,0.000147,2]
[352941590,1739449840242,-168.24611048,0.00014712,2]
[352941592,1739449840252,-466.00227713,0.00014739,2]
[352941594,1739449840262,-168.2952355,0.00014767,2]
[352941596,1739449840272,-600.0,0.00014778,2]
[352941597,1739449840282,-500.0,0.00014799,2]
[352941598,1739449840291,-500.0,0.00014799,2]
[352941599,1739449840301,-153.2140972,0.00014799,2]
[352941600,1739449840310,-10158.13822887,0.00014799,5]
[352941621,1739449840912,-312.2633,0.00014799,5]
[352941640,1739449843604,-519.47999996,0.00014799,5]
[352941641,1739449843616,-3624.66833024,0.00014799,5]
[352941643,1739449843659,-1267.67434859,0.00014799,5]
[352941743,1739449846644,-153.0,0.00014451,2]
[352941744,1739449846654,-153.0,0.00014451,2]
[352941745,1739449846663,-153.0,0.00014451,2]
[352941746,1739449846673,-153.0,0.00014451,2]
[352941747,1739449846684,-9373.00820043,0.00014799,5]
[352941748,1739449846701,-1279.8999999,0.00014799,5]
[352941749,1739449846759,-552.04201501,0.00014799,5]
[352941750,1739449846770,-45445.95798713,0.000148,5]
[352941938,1739451038027,-400.0,0.00010685,2]
[352941939,1739451038037,-600.0,0.00013408,2]
[352941940,1739451038138,-100.0,0.00013408,2]
[352941941,1739451038148,-153.0,0.00014354,2]
[352941942,1739451038158,-153.0,0.00014354,2]
[352941943,1739451038167,-153.0,0.00014355,2]
[352941944,1739451038178,-153.0,0.00014355,2]
[352941945,1739451038188,-153.0,0.00014355,2]
[352941946,1739451038197,-153.0,0.00014355,2]
[352941947,1739451038207,-153.0,0.00014361,2]
[352941948,1739451038216,-153.0,0.00014361,2]
[352941949,1739451038226,-153.0,0.00014361,2]
[352941950,1739451038236,-153.0,0.00014362,2]
[352941951,1739451038245,-153.0,0.00014362,2]
[352941952,1739451038254,-153.0,0.00014362,2]
[352941953,1739451038264,-153.0,0.00014362,2]
[352941954,1739451038273,-300.0,0.00014368,2]
[352941955,1739451038283,-153.0,0.00014368,2]
[352941956,1739451038292,-153.0,0.00014368,2]
[352941957,1739451038302,-153.0,0.00014369,2]
[352941958,1739451038311,-153.0,0.00014369,2]
[352941959,1739451038321,-153.0,0.00014369,2]
[352941960,1739451038331,-153.0,0.00014369,2]
[352941961,1739451038343,-153.0,0.00014375,2]
[352941962,1739451038352,-153.0,0.00014375,2]
[352941963,1739451038362,-153.0,0.00014375,2]
[352941964,1739451038371,-153.0,0.00014375,2]
[352941965,1739451038381,-153.0,0.00014375,2]
[352941966,1739451038391,-153.0,0.00014375,2]
[352941967,1739451038401,-153.0,0.00014375,2]
[352941968,1739451038410,-150.0,0.00014498,2]
[352941969,1739451038419,-538.0,0.00014498,2]
[352941970,1739451038432,-1970.0,0.00014498,2]
[352941971,1739451038441,-2294.0,0.00014498,2]
[352941972,1739451038451,-1005.84649465,0.000145,2]
[352941973,1739451038461,-311.0,0.000147,5]
[352941974,1739451038472,-13270.63763847,0.00014725,2]
[352941975,1739451038482,-700.0,0.00014778,2]
[352941976,1739451038492,-2279.54,0.0001479,2]
[352941977,1739451038503,-281.269,0.000148,2]
[352941978,1739451038515,-3713.49557482,0.000148,2]
[352941979,1739451038526,-50226.00692555,0.000148,2]
[352941980,1739451038537,-84095.87235567,0.0001484,5]
[352941981,1739451038551,-1674.01000334,0.0001484,5]
[352942115,1739451042761,-10254.78694747,0.0001484,5]
[352942116,1739451042816,-458.9689655,0.0001484,5]
[352942117,1739451042829,-1144.19541397,0.0001484,5]
[352942135,1739451045840,-153.0,0.00014349,2]
[352942136,1739451045850,-153.0,0.00014349,2]
[352942137,1739451045861,-153.0,0.00014349,2]
[352942138,1739451045871,-153.0,0.00014349,2]
[352942139,1739451045881,-150.0,0.00014498,2]
[352942140,1739451045891,-3026.93649998,0.0001484,5]
[352942189,1739451666925,265.0,0.00016002,120]
[352942312,1739452232109,-2471.73827188,9.467e-05,2]
[352942324,1739452232222,-2528.26172812,9.467e-05,2]
[352942327,1739452232233,-5000.0,9.563e-05,2]
[352942329,1739452232242,-300.0,0.00010683,2]
[352942331,1739452232253,-400.0,0.00010685,2]
[352942333,1739452232262,-250.0,0.00011382,2]
[352942335,1739452232272,-2676.2064912,0.00011629,2]
[352942337,1739452232281,-420.0,0.00011743,2]
[352942339,1739452232291,-420.0,0.00012909,2]
[352942341,1739452232301,-3682.48420129,0.00013114,2]
[352942342,1739452232311,-600.0,0.00013408,2]
[352942344,1739452232320,-151.0,0.000137,2]
[352942346,1739452232330,-24900.0,0.00013709,2]
[352942348,1739452232340,-4794.10503633,0.00014,2]
[352942350,1739452232352,-1596.89496367,0.00014,2]
[352942352,1739452232361,-153.0,0.00014234,2]
[352942354,1739452232371,-153.0,0.00014235,2]
[352942356,1739452232380,-153.0,0.00014235,2]
[352942358,1739452232390,-153.0,0.00014235,2]
[352942360,1739452232399,-153.0,0.00014235,2]
[352942362,1739452232408,-153.0,0.00014235,2]
[352942364,1739452232417,-153.0,0.00014235,2]
[352942366,1739452232427,-153.0,0.00014235,2]
[352942368,1739452232437,-153.0,0.00014235,2]
[352942370,1739452232446,-97.29028338,0.00014235,2]
[352942616,1739452238017,-5000.0,0.00014093,2]
[352942618,1739452238026,-55.70971662,0.00014235,2]
[352942620,1739452238036,-153.0,0.00014235,2]
[352942622,1739452238046,-153.0,0.00014235,2]
[352942624,1739452238060,-153.0,0.00014235,2]
[352942626,1739452238069,-153.0,0.0001424,2]
[352942628,1739452238078,-153.0,0.0001424,2]
[352942630,1739452238087,-153.0,0.0001424,2]
[352942632,1739452238096,-153.0,0.0001424,2]
[352942634,1739452238106,-153.0,0.0001424,2]
[352942636,1739452238115,-153.0,0.0001424,2]
[352942638,1739452238125,-153.0,0.0001424,2]
[352942640,1739452238134,-153.0,0.0001424,2]
[352942642,1739452238144,-153.0,0.0001424,2]
[352942644,1739452238153,-153.0,0.0001424,2]
[352942646,1739452238163,-153.0,0.0001424,2]
[352942648,1739452238173,-153.0,0.0001424,2]
[352942650,1739452238182,-153.0,0.0001424,2]
[352942652,1739452238192,-153.0,0.0001424,2]
[352942654,1739452238201,-153.0,0.0001424,2]
[352942656,1739452238210,-153.0,0.0001424,2]
[352942658,1739452238219,-153.0,0.0001424,2]
[352942660,1739452238228,-153.0,0.0001424,2]
[352942662,1739452238237,-153.0,0.0001424,2]
[352942664,1739452238247,-153.0,0.0001424,2]
[352942666,1739452238256,-153.0,0.0001424,2]
[352942668,1739452238265,-153.0,0.0001424,2]
[352942670,1739452238274,-153.0,0.0001424,2]
[352942672,1739452238283,-153.0,0.0001424,2]
[352942674,1739452238292,-153.0,0.0001424,2]
[352942676,1739452238302,-153.0,0.00014242,2]
[352942678,1739452238312,-153.0,0.00014242,2]
[352942680,1739452238321,-153.0,0.00014242,2]
[352942682,1739452238330,-153.0,0.00014242,2]
[352942684,1739452238340,-153.0,0.00014242,2]
[352942686,1739452238349,-153.0,0.00014242,2]
[352942688,1739452238359,-153.0,0.00014242,2]
[352942690,1739452238369,-153.0,0.00014242,2]
[352942692,1739452238378,-153.0,0.00014242,2]
[352942694,1739452238388,-153.0,0.00014242,2]
[352942696,1739452238397,-153.0,0.00014242,2]
[352942699,1739452238406,-153.0,0.00014242,2]
[352942701,1739452238416,-153.0,0.00014242,2]
[352942703,1739452238425,-153.0,0.00014242,2]
[352942705,1739452238435,-153.0,0.00014242,2]
[352942707,1739452238444,-153.0,0.00014242,2]
[352942709,1739452238454,-153.0,0.00014242,2]
[352942711,1739452238464,-153.0,0.00014242,2]
[352942713,1739452238474,-153.0,0.00014242,2]
[352942715,1739452238484,-153.0,0.00014242,2]
[352942717,1739452238494,-153.0,0.00014242,2]
[352942719,1739452238504,-153.0,0.00014242,2]
[352942721,1739452238514,-153.0,0.00014242,2]
[352942723,1739452238530,-153.0,0.00014242,2]
[352942725,1739452238540,-153.0,0.00014242,2]
[352942727,1739452238550,-153.0,0.00014242,2]
[352942729,1739452238562,-153.0,0.00014242,2]
[352942731,1739452238577,-153.0,0.00014242,2]
[352942733,1739452238587,-153.0,0.00014242,2]
[352942735,1739452238597,-153.0,0.00014242,2]
[352942737,1739452238606,-153.0,0.00014242,2]
[352942739,1739452238616,-153.0,0.00014242,2]
[352942741,1739452238626,-153.0,0.00014242,2]
[352942743,1739452238635,-153.0,0.00014242,2]
[352942745,1739452238644,-153.0,0.00014248,2]
[352942746,1739452238654,-166.1,0.00014248,2]
[352942748,1739452238663,-153.0,0.00014248,2]
[352942750,1739452238673,-153.0,0.00014254,2]
[352942752,1739452238683,-153.0,0.00014255,2]
[352942755,1739452238694,-225.016,0.00014422,2]
[352942757,1739452238703,-238.722,0.00014498,2]
[352942758,1739452238713,-150.0,0.00014498,2]
[352942761,1739452238723,-1970.0,0.00014498,2]
[352942762,1739452238732,-538.0,0.00014498,2]
[352942764,1739452238742,-1189.87810533,0.00014498,2]
[352942768,1739452238807,-1103.12189467,0.00014498,2]
[352942769,1739452238819,-396.0,0.00014498,2]
[352942770,1739452238829,-150.0,0.000145,30]
[352942771,1739452238838,-6310.0,0.000145,2]
[352942772,1739452238852,-162.947326,0.000146,6]
[352942773,1739452238861,-168.2952355,0.00014603,2]
[352942774,1739452238870,-465.05011386,0.00014702,2]
[352942775,1739452238879,-13270.63763847,0.00014728,2]
[352942776,1739452238890,-600.0,0.00014778,2]
[352942777,1739452238900,-168.2952355,0.00014795,2]
[352942778,1739452238910,-347.08690704,0.00014796,2]
[352942779,1739452238920,-2475.66371654,0.000148,2]
[352942780,1739452238932,-1800.41543915,0.000148,2]
[352942781,1739452238942,-117431.32694124,0.0001484,5]
[352942782,1739452238952,-500.0,0.00014873,2]
[352942783,1739452238961,-172.65945744,0.00014877,2]
[352942798,1739452239095,-58026.97100455,0.00014878,5]
[352942800,1739452239106,-19550.334075,0.00014878,2]
[352942802,1739452239116,-117302.00445,0.00014878,2]
[352942804,1739452239125,-500.0,0.00014887,2]
[352942806,1739452239134,-307.24986804,0.00014887,2]
[352942808,1739452239144,-247502.97216587,0.00014888,2]
[352942810,1739452239153,-151.0,0.00014888,2]
[352942812,1739452239163,-151.0,0.00014888,2]
[352942814,1739452239174,-480.361828,0.00014888,2]
[352942816,1739452239183,-480.361828,0.00014888,2]
[352942818,1739452239192,-151.0,0.00014888,2]
[352942820,1739452239202,-173.297412,0.00014888,2]
[352942822,1739452239211,-173.297412,0.00014888,2]
[352942824,1739452239221,-151.218869,0.00014888,2]
[352942826,1739452239231,-528.853298,0.00014888,2]
[352942828,1739452239240,-151.0,0.00014888,2]
[352942830,1739452239249,-528.853298,0.00014888,2]
[352942832,1739452239259,-2196.206932,0.00014888,2]
[352942834,1739452239268,-151.0,0.00014888,2]
[352942836,1739452239277,-2196.206932,0.00014888,2]
[352942838,1739452239287,-151.0,0.00014888,2]
[352942840,1739452239296,-289.609784,0.00014888,2]
[352942842,1739452239306,-289.609784,0.00014888,2]
[352942845,1739452239316,-151.726514,0.00014888,2]
[352942847,1739452239325,-151.0,0.00014888,2]
[352942849,1739452239335,-151.0,0.00014888,2]
[352942851,1739452239345,-1693.82455,0.00014888,2]
[352942853,1739452239355,-1693.82455,0.00014888,2]
[352942855,1739452239364,-336.966919,0.00014888,2]
[352942857,1739452239373,-637.413781,0.00014888,2]
[352942859,1739452239382,-336.966919,0.00014888,2]
[352942861,1739452239392,-151.0,0.00014888,2]
[352942863,1739452239401,-558.475472,0.00014888,2]
[352942865,1739452239411,-558.475472,0.00014888,2]
[352942867,1739452239420,-158.200251,0.00014888,2]
[352942869,1739452239430,-174.06446,0.00014888,2]
[352942871,1739452239439,-174.06446,0.00014888,2]
[352942873,1739452239450,-19550.334075,0.0001489,2]
[352942875,1739452239461,-151.0,0.000149,2]
[352942877,1739452239470,-151.0,0.000149,2]
[352942879,1739452239480,-151.0,0.000149,2]
[352942881,1739452239489,-151.0,0.000149,2]
[352942883,1739452239498,-151.0,0.000149,2]
[352942885,1739452239508,-151.0,0.000149,2]
[352942887,1739452239518,-151.0,0.000149,2]
[352942889,1739452239527,-260.454684,0.000149,2]
[352942891,1739452239537,-170.110562,0.000149,2]
[352942893,1739452239547,-151.0,0.000149,2]
[352942895,1739452239556,-151.0,0.000149,2]
[352942897,1739452239566,-151.0,0.000149,2]
[352942899,1739452239575,-151.0,0.000149,2]
[352942901,1739452239584,-151.0,0.000149,2]
[352942903,1739452239594,-151.0,0.000149,2]
[352942905,1739452239603,-277.854054,0.000149,2]
[352942907,1739452239613,-277.854054,0.000149,2]
[352942909,1739452239623,-150.14,0.000149,2]
[352942911,1739452239632,-151.0,0.000149,2]
[352942913,1739452239642,-544.915155,0.000149,2]
[352942915,1739452239653,-544.915155,0.000149,2]
[352942917,1739452239663,-151.0,0.000149,2]
[352942919,1739452239672,-151.80704,0.000149,2]
[352942921,1739452239682,-480.361828,0.000149,2]
[352942924,1739452239692,-480.361828,0.000149,2]
[352942925,1739452239702,-151.0,0.000149,2]
[352942927,1739452239712,-173.297412,0.000149,2]
[352942929,1739452239721,-173.297412,0.000149,2]
[352942931,1739452239730,-500.0,0.000149,2]
[352942933,1739452239739,-528.853298,0.000149,2]
[352942935,1739452239749,-528.853298,0.000149,2]
[352942937,1739452239758,-151.0,0.000149,2]
[352942939,1739452239768,-2196.206932,0.000149,2]
[352942941,1739452239777,-151.0,0.000149,2]
[352942943,1739452239786,-2196.206932,0.000149,2]
[352942946,1739452239796,-151.0,0.000149,2]
[352942948,1739452239805,-289.609784,0.000149,2]
[352942950,1739452239814,-289.609784,0.000149,2]
[352942952,1739452239825,-151.0,0.000149,2]
[352942954,1739452239834,-151.0,0.000149,2]
[352942956,1739452239848,-1693.82455,0.000149,2]
[352942958,1739452239858,-1693.82455,0.000149,2]
[352942960,1739452239867,-164.37045142,0.000149,2]
[352942962,1739452239877,-500.0,0.000149,2]
[352942964,1739452239887,-166.85557005,0.000149,2]
[352942966,1739452239896,-150.14,0.000149,2]
[352942968,1739452239906,-150.14,0.000149,2]
[352942970,1739452239916,-150.14,0.000149,2]
[352942972,1739452239926,-150.37015121,0.000149,2]
[352942974,1739452239936,-336.966919,0.000149,2]
[352942975,1739452239945,-637.413781,0.000149,2]
[352942977,1739452239954,-336.966919,0.000149,2]
[352942979,1739452239964,-151.0,0.000149,2]
[352942981,1739452239973,-151.0,0.000149,2]
[352942983,1739452239983,-558.475472,0.000149,2]
[352942985,1739452239992,-558.475472,0.000149,2]
[352942987,1739452240002,-415.233042,0.000149,2]
[352942989,1739452240012,-415.233042,0.000149,2]
[352942991,1739452240022,-3085.109234,0.000149,2]
[352942993,1739452240031,-3085.109234,0.000149,2]
[352942995,1739452240040,-151.0,0.000149,2]
[352942997,1739452240050,-151.0,0.000149,2]
[352942999,1739452240060,-151.0,0.000149,2]
[352943001,1739452240069,-500.0,0.000149,2]
[352943003,1739452240080,-500.0,0.000149,2]
[352943005,1739452240089,-176.843333,0.000149,2]
[352943007,1739452240100,-150.14,0.000149,2]
[352943009,1739452240109,-150.14,0.000149,2]
[352943011,1739452240119,-150.14,0.000149,2]
[352943013,1739452240129,-150.14,0.000149,2]
[352943015,1739452240139,-339.497214,0.000149,2]
[352943017,1739452240149,-500.0,0.000149,2]
[352943019,1739452240158,-150.14,0.000149,2]
[352943021,1739452240168,-627.0,0.000149,2]
[352943023,1739452240179,-339.497214,0.000149,2]
[352943025,1739452240188,-150.14,0.000149,2]
[352943027,1739452240198,-151.0,0.000149,2]
[352943028,1739452240208,-32642.01530957,0.000149,2]
[352943031,1739452240222,-1847.30529547,0.000149,2]
[352943033,1739452240233,-4851.42129578,0.000149,2]
[352943035,1739452240246,-2695.5393851,0.000149,2]
[352943067,1739452240519,-14282.54221126,0.00014878,5]
[352943069,1739452240529,-14288.26074482,0.000149,2]
[352943308,1739452243041,-5000.0,0.00014751,2]
[352943309,1739452243051,-1914.11070808,0.000149,2]
[352943581,1739452246067,-3453.04664707,0.000149,2]
[352943583,1739452246079,-5865.05239013,0.000149,2]
[352943589,1739452246121,-1151.0,0.000149,2]
[352943596,1739452246180,-153.0,0.00014228,2]
[352943598,1739452246190,-960.90380892,0.000149,2]
[352944000,1739453432529,-5000.0,9.716e-05,2]
[352944002,1739453432540,-5000.0,9.814e-05,2]
[352944004,1739453432551,-300.0,0.00010182,2]
[352944006,1739453432561,-67.38614768,0.00010184,2]
[352944012,1739453432614,-229.32336052,0.00010184,2]
[352944014,1739453432624,-400.0,0.00010685,2]
[352944016,1739453432635,-492.54,0.00010959,2]
[352944018,1739453432644,-420.0,0.00011198,2]
[352944020,1739453432655,-34610.6721712,0.00011442,2]
[352944022,1739453432665,-203.3520948,0.00011652,2]
[352944024,1739453432675,-2530.4834819,0.00011795,2]
[352944026,1739453432685,-587.0,0.00012316,2]
[352944028,1739453432696,-700.0,0.00013408,2]
[352944032,1739453432706,-7438.69753278,0.00013541,2]
[352944035,1739453432716,-300.0,0.00013545,2]
[352944038,1739453432727,-19287.55677845,0.00013569,2]
[352944593,1739453438342,-586.48494287,9.619e-05,2]
[352944595,1739453438355,-695.17649006,9.619e-05,2]
[352944597,1739453438372,-3718.33856707,9.619e-05,2]
[352944599,1739453438384,-5196.85284373,0.00013569,2]
[352944602,1739453438402,-415.59037782,0.00013569,2]
[352944604,1739453438412,-933.96722691,0.00014,2]
[352944607,1739453438425,-4097.77400018,0.00014,2]
[352944609,1739453438435,-153.0,0.00014165,2]
[352944611,1739453438445,-153.0,0.00014166,2]
[352944613,1739453438455,-153.0,0.00014172,2]
[352944615,1739453438465,-168.27067299,0.00014438,2]
[352944643,1739453438645,-250.33,0.00014499,2]
[352944645,1739453438655,-24495.70322071,0.00014499,2]
[352944647,1739453438666,-150.0,0.00014538,2]
[352944649,1739453438676,-1973.0,0.00014538,2]
[352944652,1739453438687,-538.0,0.00014538,2]
[352944654,1739453438697,-2300.0,0.00014538,2]
[352944656,1739453438707,-396.0,0.00014538,2]
[352944658,1739453438717,-160.584667,0.000146,6]
[352944660,1739453438727,-168.27067299,0.0001463,2]
[352944662,1739453438736,-13270.63763847,0.00014701,2]
[352944664,1739453438746,-700.0,0.00014778,2]
[352944666,1739453438756,-329.91056156,0.00014799,2]
[352944668,1739453438766,-256.43,0.00014799,2]
[352944670,1739453438775,-500.0,0.00014799,2]
[352944672,1739453438785,-500.0,0.00014799,2]
[352944674,1739453438795,-500.0,0.00014799,2]
[352944676,1739453438804,-500.0,0.00014799,2]
[352944678,1739453438815,-500.0,0.00014799,2]
[352944680,1739453438824,-172.93275021,0.00014799,2]
[352944682,1739453438834,-500.0,0.00014799,2]
[352944684,1739453438844,-500.0,0.00014799,2]
[352944686,1739453438853,-350.0,0.00014799,2]
[352944688,1739453438868,-500.0,0.00014799,2]
[352944690,1739453438878,-500.0,0.00014799,2]
[352944692,1739453438887,-500.0,0.00014799,2]
[352944694,1739453438897,-500.0,0.00014799,2]
[352944696,1739453438906,-250.0,0.00014799,2]
[352944698,1739453438915,-500.0,0.00014799,2]
[352944699,1739453438925,-500.0,0.00014799,2]
[352944700,1739453438935,-500.0,0.00014799,2]
[352944701,1739453438944,-500.0,0.00014799,2]
[352944703,1739453438955,-500.0,0.00014799,2]
[352944705,1739453438965,-500.0,0.00014799,2]
[352944707,1739453438975,-5688.998,0.000148,2]
[352944709,1739453438985,-3639.386233,0.000148,2]
[352944710,1739453438995,-2564.85311759,0.000148,2]
[352944711,1739453439005,-12707.7171487,0.000148,2]
[352944712,1739453439016,-2564.85311759,0.00014801,2]
[352944713,1739453439027,-2564.85311759,0.00014802,2]
[352944714,1739453439038,-2564.85311759,0.00014803,2]
[352944715,1739453439049,-2564.85311759,0.00014804,2]
[352944716,1739453439060,-168.27067299,0.00014822,2]
[352944717,1739453439071,-500.0,0.00014873,2]
[352944718,1739453439082,-500.0,0.00014887,2]
[352944719,1739453439093,-12707.7171487,0.00014889,2]
[352944720,1739453439103,-12707.7171487,0.0001489,2]
[352944721,1739453439119,-1650.4424777,0.00014894,2]
[352944722,1739453439129,-418.91076104,0.00014899,2]
[352944723,1739453439139,-565.07490763,0.00014899,2]
[352944724,1739453439148,-29013.48550228,0.000149,5]
[352944725,1739453439158,-151.0,0.000149,2]
[352944726,1739453439168,-151.0,0.000149,2]
[352944728,1739453439178,-151.0,0.000149,2]
[352944730,1739453439188,-151.0,0.000149,2]
[352944731,1739453439198,-151.0,0.000149,2]
[352944732,1739453439208,-151.0,0.000149,2]
[352944733,1739453439218,-160.584667,0.000149,2]
[352944734,1739453439233,-500.0,0.000149,2]
[352944735,1739453439243,-150.15,0.000149,2]
[352944736,1739453439254,-500.0,0.000149,2]
[352944737,1739453439265,-500.0,0.000149,2]
[352944738,1739453439276,-166.85557005,0.000149,2]
[352944739,1739453439287,-150.15,0.000149,2]
[352944740,1739453439296,-150.15,0.000149,2]
[352944741,1739453439307,-150.15,0.000149,2]
[352944742,1739453439318,-150.15,0.000149,2]
[352944743,1739453439328,-36773.97999015,0.000149,2]
[352944753,1739453440781,-797.43683832,0.000149,5]
[352944930,1739453444198,-532.9532056,0.000149,5]
[352944957,1739453446295,-1460.0152113,0.000149,5]
[352944960,1739453446308,-4350.86585041,0.000149,5]
[352944961,1739453446319,-478960.10514658,0.000149,2]
[352944965,1739453446386,-395.22327585,0.000149,2]
[352945208,1739454632493,-5000.0,0.00010578,2]
[352945210,1739454632502,-400.0,0.00010685,2]
[352945212,1739454632511,-197.46062031,0.00010749,2]
[352945214,1739454632521,-188.71,0.00010959,2]
[352945216,1739454632531,-157.26,0.00010959,2]
[352945218,1739454632541,-786.3,0.00010959,2]
[352945220,1739454632550,-300.0,0.00012052,2]
[352945222,1739454632560,-24900.0,0.00012053,2]
[352945224,1739454632569,-157.669954,0.00013051,2]
[352945226,1739454632578,-157.669954,0.00013073,2]
[352945228,1739454632588,-157.669954,0.00013094,2]
[352945230,1739454632598,-157.669954,0.00013116,2]
[352945232,1739454632608,-420.0,0.0001323,2]
[352945234,1739454632617,-600.0,0.00013408,2]
[352945236,1739454632627,-7438.69753278,0.00013846,2]
[352945238,1739454632637,-200.264,0.000145,2]
[352945240,1739454632646,-193.310626,0.00014503,2]
[352945242,1739454632656,-396.0,0.00014578,2]
[352945244,1739454632670,-150.0,0.00014578,2]
[352945246,1739454632682,-538.0,0.00014578,2]
[352945248,1739454632691,-1970.0,0.00014578,2]